bitfinex/quotes_ETHUSD_20250821
["timestamp","ask_amount","ask_price","bid_price","bid_amount"]
[1755767418930,3.0,4276.1,4276.0,0.001]
[1755767419228,3.7408,4276.1,4276.0,0.001]
[1755767420127,11.43847618,4276.1,4276.0,0.001]
[1755767420529,3.7408,4276.1,4276.0,0.001]
[1755767420728,11.43847618,4276.1,4276.0,0.001]
[1755767421225,13.1780638,4276.1,4276.0,0.001]
[1755767423943,8.89658762,4276.1,4276.0,0.001]
[1755767424147,7.8978,4276.1,4276.0,0.001]
[1755767424346,15.59547618,4276.1,4276.0,0.001]
[1755767425031,15.59447618,4276.1,4276.0,0.001]
[1755767426133,7.8968,4276.1,4276.0,0.001]
[1755767427527,15.59447618,4276.1,4276.0,0.001]
[1755767427841,14.3328638,4276.1,4276.0,0.001]
[1755767428045,14.3318638,4276.1,4276.0,0.001]
[1755767429107,1.7994,4276.3,4276.0,0.001]
[1755767429335,4.154,4276.2,4276.0,0.001]
[1755767430436,0.0004,4276.3,4276.1,7.69767618]
[1755767430625,0.0004,4276.3,4276.2,7.69767618]
[1755767430861,0.0004,4276.3,4276.2,8.4792238]
[1755767431227,0.0004,4276.3,4276.0,0.001]
[1755767432436,4.1526,4276.5,4276.0,0.001]
[1755767432728,4.6053,4276.5,4276.0,0.001]
[1755767433429,4.1526,4276.5,4276.0,0.001]
[1755767434036,4.6053,4276.5,4276.0,0.001]
[1755767434206,0.4527,4276.4,4276.0,0.001]
[1755767434841,4.1526,4276.5,4276.0,0.001]
[1755767435640,4.151,4276.4,4276.0,0.001]
[1755767435859,0.002,4276.8,4276.0,0.77283762]
[1755767436038,0.002,4276.8,4276.3,7.69767618]
[1755767436339,0.002,4276.4,4276.3,7.69767618]
[1755767437717,0.002,4276.4,4276.3,10.69767618]
[1755767438310,0.002,4276.8,4276.4,3.66]
[1755767438534,0.002,4276.8,4276.7,10.69767618]
[1755767438844,0.002,4276.8,4276.7,10.99054712]
[1755767440335,0.002,4276.8,4276.7,15.13854712]
[1755767440531,0.002,4276.8,4276.7,15.23227012]
[1755767441443,0.002,4276.8,4276.7,11.08427012]
[1755767441612,0.002,4276.8,4276.7,16.30530002]
[1755767441817,0.002,4277.0,4276.8,0.66]
[1755767442051,0.002,4277.3,4276.9,0.02338142]
[1755767442242,0.002,4277.3,4277.2,11.35767618]
[1755767442417,0.002,4277.3,4277.2,12.36521611]
[1755767442935,1.799,4278.7,4277.3,3.66]
[1755767443137,0.4476,4278.6,4277.3,3.66]
[1755767443447,0.4456,4278.0,4277.2,0.88863762]
[1755767443639,0.4656,4277.8,4277.3,14.84467618]
[1755767443837,0.4676,4277.8,4277.3,14.84467618]
[1755767444338,0.4676,4277.8,4277.3,24.6321808]
[1755767444543,0.4676,4277.8,4277.3,24.6311808]
[1755767445056,0.4676,4277.8,4277.3,21.6311808]
[1755767446050,0.4456,4277.6,4277.3,21.6311808]
[1755767446250,0.022,4277.8,4277.3,21.6311808]
[1755767453766,0.022,4277.8,4277.4,0.66]
[1755767453964,0.022,4277.8,4277.6,0.1168]
[1755767454329,0.022,4277.8,4277.6,0.14017759]
[1755767454535,0.022,4277.8,4277.6,0.7768]
[1755767455264,0.022,4277.8,4277.6,0.1168]
[1755767455469,0.7578,4277.7,4277.6,24.6251808]
[1755767455669,0.4476,4277.7,4277.6,26.98732043]
[1755767455834,0.002,4277.7,4277.6,26.98732043]
[1755767456035,0.0012,4277.7,4277.6,26.98732043]
[1755767456668,0.0012,4277.7,4277.6,22.84732043]
[1755767456970,0.0012,4277.7,4277.6,26.98732043]
[1755767457540,0.0012,4277.7,4277.6,22.84732043]
[1755767457769,0.0012,4277.7,4277.6,26.98732043]
[1755767458137,0.0012,4277.7,4277.6,27.43292043]
[1755767458477,0.0012,4277.7,4277.6,23.29292043]
[1755767458646,0.757,4277.7,4277.6,20.29292043]
[1755767458842,0.757,4277.7,4277.6,24.43192043]
[1755767459558,0.0012,4277.7,4277.6,24.43192043]
[1755767460238,0.757,4277.7,4277.6,4.5846]
[1755767460434,0.757,4277.7,4277.6,0.4456]
[1755767460663,0.757,4277.7,4276.5,17.4851808]
[1755767460892,0.4456,4277.6,4276.7,0.703045]
[1755767461071,0.3102,4276.8,4276.7,0.703045]
[1755767461272,0.3102,4276.8,4276.0,0.11721127]
[1755767461273,0.7558,4276.8,4276.0,0.11721127]
[1755767461437,0.4456,4276.7,4276.1,4.137]
[1755767461648,0.3102,4276.2,4276.1,4.137]
[1755767461872,0.7558,4276.2,4276.0,0.001]
[1755767462244,0.4456,4276.6,4276.1,4.137]
[1755767462543,1.798,4277.6,4276.1,4.137]
[1755767462544,0.4456,4276.5,4276.4,17.4851808]
[1755767462742,0.7558,4276.5,4276.1,4.840142]
[1755767462968,0.4456,4276.4,4276.1,7.09198555]
[1755767463141,0.3102,4276.2,4276.1,7.09198555]
[1755767463344,0.7558,4276.2,4276.1,0.703142]
[1755767463573,0.7558,4276.2,4276.0,0.001]
[1755767463574,0.7558,4276.2,4276.0,4.137]
[1755767463874,0.4456,4276.1,4276.0,0.001]
[1755767464046,0.7558,4276.1,4276.0,0.001]
[1755767465672,1.798,4276.8,4276.0,0.001]
[1755767465892,0.4456,4276.5,4276.0,17.4861808]
[1755767466061,0.4456,4276.4,4276.1,0.02338579]
[1755767466265,0.3102,4276.2,4276.0,17.4861808]
[1755767466467,1.798,4276.8,4276.0,17.4861808]
[1755767466772,0.4456,4276.6,4276.0,17.4861808]
[1755767467271,0.3102,4276.1,4276.0,17.4861808]
[1755767467658,0.7558,4276.1,4276.0,17.4861808]
[1755767467858,0.4456,4276.6,4276.0,19.84832043]
[1755767468249,0.4456,4276.6,4276.1,4.135]
[1755767468670,1.798,4276.8,4276.1,4.135]
[1755767468872,0.3102,4276.2,4276.0,17.4861808]
[1755767469073,0.3102,4276.2,4276.1,4.135]
[1755767469248,1.798,4276.8,4276.1,4.135]
[1755767469450,0.3102,4276.2,4276.1,0.703112]
[1755767469870,0.7558,4276.2,4276.1,0.703112]
[1755767471587,0.4456,4276.2,4276.1,0.703112]
[1755767471890,0.7494,4276.2,4276.1,0.703112]
[1755767476880,0.7494,4276.2,4276.0,0.001]
[1755767477084,0.4674,4276.1,4276.0,0.001]
[1755767477282,0.7712,4276.1,4276.0,0.001]
[1755767479958,0.7704,4276.1,4276.0,0.001]
[1755767482967,8.46421515,4276.1,4276.0,0.001]
[1755767483164,9.31063667,4276.1,4276.0,0.001]
[1755767483562,1.61682152,4276.1,4276.0,0.001]
[1755767483877,0.7704,4276.1,4276.0,0.001]
[1755767487509,8.46421515,4276.1,4276.0,0.001]
[1755767489613,12.59121515,4276.1,4276.0,0.001]
[1755767491670,8.46421515,4276.1,4276.0,0.001]
[1755767491895,12.59021515,4276.1,4276.0,0.001]
[1755767492095,13.84923667,4276.1,4276.0,0.001]
[1755767494809,2.02942152,4276.1,4276.0,0.001]
[1755767495009,4.5916,4276.1,4276.0,0.001]
[1755767495194,4.125,4276.1,4276.0,0.001]
[1755767495513,0.4674,4276.4,4276.0,0.001]
[1755767495709,4.125,4276.3,4276.0,0.001]
[1755767497019,6.0904,4276.7,4276.0,0.001]
[1755767497189,5.922,4276.8,4276.0,0.001]
[1755767497390,4.124,4276.8,4276.1,0.77135152]
[1755767497914,4.124,4276.8,4276.1,0.86510052]
[1755767498209,4.124,4276.8,4276.2,7.69381515]
[1755767498377,4.124,4276.8,4276.1,0.86510052]
[1755767498579,4.124,4276.8,4276.2,0.85599157]
[1755767499217,0.4674,4277.3,4276.2,0.85599157]
[1755767499399,0.4674,4277.0,4276.2,0.85599157]
[1755767499788,0.4674,4277.0,4276.1,0.093749]
[1755767499789,0.3038,4276.3,4276.1,0.093749]
[1755767500076,0.3038,4276.3,4276.0,0.001]
[1755767500077,0.4674,4276.2,4276.0,0.001]
[1755767500289,0.3038,4276.1,4276.0,0.001]
[1755767500604,4.4258,4276.1,4276.0,0.001]
[1755767500805,6.15190151,4276.1,4276.0,0.001]
[1755767502309,4.8932,4276.1,4276.0,0.001]
[1755767503783,4.8924,4276.1,4276.0,0.001]
[1755767507612,4.8894,4276.1,4276.0,0.001]
[1755767510611,4.422,4276.1,4276.0,0.001]
[1755767510928,4.118,4276.1,4276.0,0.001]
[1755767513321,4.5636,4276.1,4276.0,0.001]
[1755767513485,4.118,4276.1,4276.0,0.001]
[1755767515888,1.801,4276.6,4276.0,0.001]
[1755767516085,0.002,4276.6,4276.0,0.02438634]
[1755767516313,0.002,4276.6,4276.1,17.5316304]
[1755767516513,0.002,4276.6,4276.1,17.50824461]
[1755767516716,0.002,4276.6,4276.2,0.02338524]
[1755767516892,0.002,4276.6,4276.1,17.50824461]
[1755767517308,0.002,4276.6,4276.0,1.8687001]
[1755767517514,0.002,4276.6,4276.0,0.113467]
[1755767519600,0.3119,4276.1,4276.0,0.113467]
[1755767520191,4.113,4276.3,4276.0,0.113467]
[1755767520390,4.113,4276.4,4276.0,0.113467]
[1755767520720,0.3119,4276.1,4276.0,0.113467]
[1755767521221,0.7575,4276.1,4276.0,0.113467]
[1755767524517,4.113,4276.6,4276.0,0.113467]
[1755767524758,4.113,4276.6,4276.1,1.76404116]
[1755767525598,0.002,4276.6,4276.3,17.50824461]
[1755767526417,0.002,4276.6,4276.4,0.703106]
[1755767527509,0.0012,4276.6,4276.4,0.703106]
[1755767529917,0.7575,4276.5,4276.4,0.703106]
[1755767530224,0.7575,4276.5,4276.0,0.001]
[1755767530524,0.4456,4276.4,4276.1,0.703106]
[1755767531722,0.2906,4276.2,4276.1,0.703106]
[1755767531927,0.7218,4276.2,4276.1,0.703106]
[1755767532110,0.7218,4276.2,4276.0,0.001]
[1755767532111,1.38468,4276.2,4276.0,0.001]
[1755767532302,0.4312,4276.1,4276.0,0.001]
[1755767532511,0.7218,4276.1,4276.0,0.001]
[1755767537116,0.7238,4276.1,4276.0,0.001]
[1755767541460,4.8278,4276.1,4276.0,0.001]
[1755767543254,0.2926,4276.1,4276.0,0.001]
[1755767543474,4.105,4276.1,4276.0,0.001]
[1755767544332,4.8268,4276.1,4276.0,0.001]
[1755767544672,0.002,4276.1,4276.0,0.001]
[1755767544826,4.104,4276.1,4276.0,0.001]
[1755767545538,0.002,4276.1,4276.0,0.001]
[1755767545757,0.002,4276.1,4276.0,1.75389446]
[1755767545926,0.002,4276.1,4276.0,1.84765846]
[1755767546326,0.002,4276.1,4276.0,1.8710448]
[1755767546959,0.002,4276.1,4276.0,1.84765846]
[1755767547172,0.0012,4276.6,4276.0,1.8710448]
[1755767547385,0.0012,4276.6,4276.5,20.50824461]
[1755767547586,0.002,4277.0,4276.9,20.50824461]
[1755767549165,0.002,4277.0,4276.9,20.68290261]
[1755767550149,0.002,4277.0,4276.9,20.79970261]
[1755767550582,0.002,4277.5,4277.0,3.66]
[1755767550754,0.002,4277.5,4277.4,20.50824461]
[1755767551107,0.002,4277.5,4277.4,24.60724461]
[1755767551282,0.0012,4277.5,4277.4,24.60724461]
[1755767551974,0.0012,4277.5,4277.4,24.69995161]
[1755767552177,0.0012,4277.5,4277.4,24.81521269]
[1755767552393,0.0012,4277.5,4277.4,26.28848254]
[1755767552779,0.0012,4277.5,4277.4,26.94848254]
[1755767553106,0.002,4278.2,4278.0,2.33753304]
[1755767553247,0.02,4278.8,4278.2,3.66]
[1755767553446,0.02,4278.8,4278.5,21.16824461]
[1755767553674,0.02,4278.8,4278.5,21.28504461]
[1755767553990,0.02,4278.8,4278.6,3.66]
[1755767554150,0.02,4278.8,4278.7,4.097]
[1755767555213,0.02,4278.8,4278.6,3.66]
[1755767555499,0.02,4278.8,4278.7,8.56926985]
[1755767557296,0.02,4278.8,4278.7,8.66294585]
[1755767559396,0.02,4278.8,4278.7,4.56694585]
[1755767559571,0.02,4278.8,4278.7,8.65994585]
[1755767561764,0.3343,4278.8,4278.7,26.16619046]
[1755767561965,0.7691,4278.8,4278.7,19.07519046]
[1755767562165,0.7691,4278.8,4278.1,17.50824461]
[1755767562396,0.4348,4278.7,4278.1,21.59924461]
[1755767562599,0.3143,4278.2,4278.1,17.50824461]
[1755767562763,0.7491,4278.2,4278.1,21.59924461]
[1755767563168,0.7491,4278.2,4278.1,17.50824461]
[1755767563409,0.7491,4278.2,4278.1,21.59824461]
[1755767564202,0.7491,4278.2,4278.0,0.702788]
[1755767564402,0.7491,4278.2,4277.6,1.798]
[1755767564403,0.3143,4278.2,4277.8,4.09]
[1755767564600,0.4348,4278.1,4277.8,4.1133765]
[1755767564763,0.3143,4277.9,4277.8,7.09]
[1755767564963,0.7491,4277.9,4277.8,7.09]
[1755767565405,0.02,4278.8,4277.8,7.09]
[1755767565406,0.4348,4278.3,4277.8,9.45213963]
[1755767565587,0.02,4278.8,4277.8,9.45213963]
[1755767565794,0.4348,4278.2,4277.8,9.45213963]
[1755767565994,0.02,4278.8,4277.8,9.45213963]
[1755767566191,0.4348,4278.1,4277.8,9.45213963]
[1755767566373,0.4348,4278.0,4277.9,0.86402468]
[1755767567072,0.02,4278.8,4277.9,0.86402468]
[1755767567403,0.4348,4278.6,4278.2,17.50824461]
[1755767567577,0.4348,4278.5,4278.2,17.50824461]
[1755767567787,0.02,4278.8,4278.2,21.59624461]
[1755767568089,0.02,4278.8,4278.2,23.84227154]
[1755767568090,0.4348,4278.7,4278.2,23.84227154]
[1755767568293,0.3143,4278.3,4278.2,17.50824461]
[1755767568599,0.02,4278.8,4278.3,3.0]
[1755767568790,0.02,4278.8,4278.4,4.088]
[1755767569004,0.4348,4278.7,4278.4,4.088]
[1755767569202,0.02,4278.8,4278.4,4.088]
[1755767569404,0.3143,4278.5,4278.4,3.0]
[1755767569590,0.3143,4278.5,4278.4,7.088]
[1755767569796,0.7491,4278.5,4278.4,3.0]
[1755767570106,0.4548,4278.8,4278.4,3.0]
[1755767570403,0.4348,4278.7,4278.4,3.0]
[1755767570590,0.02,4278.8,4278.6,17.50824461]
[1755767570791,0.02,4278.8,4278.7,0.02337158]
[1755767570968,0.02,4278.8,4278.7,6.47251121]
[1755767571174,0.02,4278.8,4278.7,6.44913963]
[1755767572682,0.02,4278.8,4278.7,9.44913963]
[1755767573094,0.02,4278.8,4278.7,9.54282263]
[1755767574994,0.0192,4278.8,4278.7,9.54282263]
[1755767575393,0.0192,4278.8,4278.7,10.20282263]
[1755767575593,0.002,4279.3,4279.2,2.99688539]
[1755767575798,0.002,4279.3,4279.2,25.37004461]
[1755767575994,0.002,4279.3,4279.2,27.70693]
[1755767576425,0.002,4279.3,4279.2,25.37004461]
[1755767576582,0.002,4279.3,4279.2,27.70693]
[1755767576920,0.002,4279.3,4279.2,30.06906963]
[1755767577414,0.002,4279.3,4279.2,30.24607313]
[1755767577790,0.002,4279.5,4279.4,2.99677618]
[1755767578111,0.002,4279.5,4279.4,11.87877618]
[1755767578418,0.002,4279.5,4279.4,11.87777618]
[1755767578635,0.002,4279.5,4279.4,12.83543986]
[1755767580428,0.002,4279.5,4279.4,27.34590829]
[1755767580723,0.002,4279.5,4279.4,20.26390829]
[1755767581016,0.4368,4279.5,4279.4,27.34590829]
[1755767581617,0.002,4279.5,4279.4,27.34590829]
[1755767582718,0.3163,4279.5,4279.4,5.75566368]
[1755767582916,0.7511,4279.5,4279.4,9.83666368]
[1755767583583,0.002,4279.5,4279.4,9.83666368]
[1755767584214,0.002,4279.5,4279.4,10.49666368]
[1755767584787,0.002,4279.5,4279.4,6.41566368]
[1755767584998,0.002,4279.5,4279.4,10.49566368]
[1755767585232,0.002,4279.5,4279.4,6.41566368]
[1755767585527,0.002,4279.5,4279.4,10.49566368]
[1755767585898,0.002,4279.5,4279.4,6.41566368]
[1755767586098,0.002,4279.5,4279.4,10.49466368]
[1755767586525,0.7511,4279.5,4279.4,10.49466368]
[1755767586732,0.4368,4279.5,4279.4,10.49466368]
[1755767586925,0.002,4279.5,4279.4,10.49466368]
[1755767588327,0.7511,4279.5,4279.4,5.75566368]
[1755767588647,0.7511,4279.5,4279.4,9.83466368]
[1755767589826,0.002,4279.5,4279.4,9.83466368]
[1755767590414,0.3163,4279.5,4279.4,9.83466368]
[1755767590626,0.7511,4279.5,4279.4,9.83466368]
[1755767590824,0.7511,4279.5,4279.4,14.02466368]
[1755767592642,0.4368,4279.5,4279.4,14.02466368]
[1755767593138,0.002,4279.5,4279.4,14.02466368]
[1755767593434,0.002,4279.5,4279.4,14.68466368]
[1755767594015,0.002,4279.5,4279.4,10.60566368]
[1755767594220,0.002,4279.5,4279.4,14.68166368]
[1755767594733,0.002,4279.5,4279.4,10.60566368]
[1755767594935,0.2893,4279.5,4279.4,14.02066368]
[1755767595139,0.7282,4279.5,4279.4,14.02066368]
[1755767596168,0.7282,4279.5,4279.4,1.891639]
[1755767596350,0.7282,4279.5,4279.4,5.966639]
[1755767596642,0.7282,4279.5,4279.4,8.966639]
[1755767597632,0.7282,4279.5,4279.4,4.891639]
[1755767597939,0.7282,4279.5,4279.4,8.873]
[1755767598139,0.7282,4279.5,4279.4,4.798]
[1755767598310,0.7282,4279.5,4279.4,8.872]
[1755767598722,0.7274,4279.5,4279.4,8.872]
[1755767599511,0.7274,4279.5,4279.4,1.798]
[1755767599713,0.7274,4279.5,4279.0,4.902572]
[1755767599714,0.7274,4279.5,4279.0,4.2]
[1755767599922,0.4389,4279.4,4279.1,4.074]
[1755767600128,0.2873,4279.2,4279.1,4.074]
[1755767600339,0.7262,4279.2,4279.0,4.2]
[1755767600534,0.7262,4279.2,4279.1,4.074]
[1755767600836,0.2873,4279.2,4279.1,4.074]
[1755767601032,0.2873,4279.2,4279.0,4.2]
[1755767601233,0.7262,4279.2,4279.0,4.2]
[1755767601630,0.4389,4279.1,4279.0,8.273]
[1755767601831,0.7262,4279.1,4279.0,8.273]
[1755767602242,0.7262,4279.1,4279.0,4.2]
[1755767603065,0.0012,4279.5,4279.0,4.2]
[1755767603574,0.2873,4279.1,4279.0,4.2]
[1755767603737,0.2873,4279.1,4279.0,8.272]
[1755767604068,0.7262,4279.1,4279.0,4.2]
[1755767604432,18.23444461,4279.1,4279.0,4.2]
[1755767604659,20.05788907,4279.1,4279.0,4.2]
[1755767606649,20.05788907,4279.1,4279.0,4.201]
[1755767606846,2.54964446,4279.1,4279.0,4.201]
[1755767607052,0.7262,4279.1,4279.0,4.201]
[1755767610456,0.0012,4279.5,4279.0,4.201]
[1755767610457,0.4389,4279.3,4279.0,4.201]
[1755767610640,0.0012,4279.5,4279.0,4.201]
[1755767610839,0.4389,4279.4,4279.0,4.201]
[1755767611052,0.4389,4279.3,4279.0,4.201]
[1755767611941,0.0012,4279.5,4279.1,0.0233694]
[1755767612574,0.0012,4279.5,4279.1,3.85280634]
[1755767612876,0.0012,4279.5,4279.2,4.07]
[1755767613077,0.0012,4279.5,4279.3,0.0233683]
[1755767613272,0.0012,4279.5,4279.2,4.07]
[1755767613574,0.0012,4279.5,4279.3,3.0]
[1755767613872,0.0012,4279.5,4279.4,0.79931119]
[1755767615571,0.0012,4279.5,4279.4,4.86831119]
[1755767615776,0.7274,4279.5,4279.4,4.86831119]
[1755767616373,0.0012,4279.5,4279.4,4.86831119]
[1755767617179,0.2885,4279.5,4279.4,4.068]
[1755767617485,0.7274,4279.5,4279.4,4.068]
[1755767617982,0.0012,4279.5,4279.3,4.068]
[1755767619374,0.0012,4279.5,4279.4,20.64841237]
[1755767619543,0.0012,4279.5,4279.4,22.98718424]
[1755767620049,0.0012,4279.5,4279.4,23.08084924]
[1755767620676,0.0012,4279.5,4279.4,9.63860463]
[1755767621373,0.7594,4279.5,4279.4,9.42813963]
[1755767621670,0.7594,4279.5,4279.4,7.066]
[1755767622042,0.0012,4279.5,4279.4,7.066]
[1755767622453,0.7586,4279.5,4279.4,7.066]
[1755767622964,0.7586,4279.5,4279.2,1.797]
[1755767623283,0.4545,4279.4,4279.1,3.0]
[1755767623463,0.3037,4279.2,4279.1,3.0]
[1755767623657,0.7582,4279.2,4279.0,4.201]
[1755767624165,0.4545,4279.1,4279.0,4.201]
[1755767624480,0.7582,4279.1,4279.0,4.201]
[1755767633602,0.3037,4279.1,4279.0,4.201]
[1755767633896,0.7582,4279.1,4279.0,4.201]
[1755767636695,2.99124446,4279.1,4279.0,4.201]
[1755767643020,7.05024446,4279.1,4279.0,4.201]
[1755767646210,7.04944446,4279.1,4279.0,4.201]
[1755767646397,14.7372746,4279.1,4279.0,4.201]
[1755767647310,17.7372746,4279.1,4279.0,4.201]
[1755767653728,18.3972746,4279.1,4279.0,4.201]
[1755767654824,14.3382746,4279.1,4279.0,4.201]
[1755767655032,18.3932746,4279.1,4279.0,4.201]
[1755767662198,17.9357746,4279.1,4279.0,4.201]
[1755767662511,18.3663746,4279.1,4279.0,4.201]
[1755767666324,9.28504446,4279.1,4279.0,4.201]
[1755767666532,14.73883014,4279.1,4279.0,4.201]
[1755767667835,15.46533014,4279.1,4279.0,4.201]
[1755767668134,14.73883014,4279.1,4279.0,4.201]
[1755767668509,10.68783014,4279.1,4279.0,4.201]
[1755767668716,14.73783014,4279.1,4279.0,4.201]
[1755767669634,16.39141315,4279.1,4279.0,4.201]
[1755767669839,17.11791315,4279.1,4279.0,4.201]
[1755767670033,17.11711315,4279.1,4279.0,4.201]
[1755767671738,17.77711315,4279.1,4279.0,4.201]
[1755767674334,17.77911315,4279.1,4279.0,4.201]
[1755767675247,10.72991315,4279.1,4279.0,4.201]
[1755767675547,2.31558301,4279.1,4279.0,4.201]
[1755767675747,12.69373014,4279.1,4279.0,4.201]
[1755767675933,13.12433014,4279.1,4279.0,4.201]
[1755767677439,12.82843014,4279.1,4279.0,4.201]
[1755767678019,11.34983014,4279.1,4279.0,4.201]
[1755767678217,15.39683014,4279.1,4279.0,4.201]
[1755767678435,17.15937315,4279.1,4279.0,4.201]
[1755767678841,12.45237315,4279.1,4279.0,4.201]
[1755767679042,14.73583014,4279.1,4279.0,4.201]
[1755767679657,15.46233014,4279.1,4279.0,4.201]
[1755767680053,14.73583014,4279.1,4279.0,4.201]
[1755767680225,4.048,4279.1,4279.0,4.201]
[1755767683852,4.3599,4279.1,4279.0,4.201]
[1755767684034,13.13502014,4279.1,4279.0,4.201]
[1755767685251,12.51923014,4279.1,4279.0,4.201]
[1755767685451,4.048,4279.1,4279.0,4.201]
[1755767686323,4.8314,4279.1,4279.0,4.201]
[1755767686854,4.048,4279.1,4279.0,4.201]
[1755767689736,12.51923014,4279.1,4279.0,4.201]
[1755767690057,13.53742171,4279.1,4279.0,4.201]
[1755767690827,14.19742171,4279.1,4279.0,4.201]
[1755767691032,17.19742171,4279.1,4279.0,4.201]
[1755767691840,9.50959157,4279.1,4279.0,4.201]
[1755767692059,17.19742171,4279.1,4279.0,4.201]
[1755767692571,8.06619157,4279.1,4279.0,4.201]
[1755767692776,7.048,4279.1,4279.0,4.201]
[1755767693162,7.5195,4279.1,4279.0,4.201]
[1755767693339,7.8314,4279.1,4279.0,4.201]
[1755767693680,7.8306,4279.1,4279.0,4.201]
[1755767694535,3.0012,4279.1,4279.0,4.201]
[1755767694735,7.0422,4279.1,4279.0,4.201]
[1755767696346,17.21338315,4279.1,4279.0,4.201]
[1755767700882,17.87338315,4279.1,4279.0,4.201]
[1755767702778,17.87338315,4279.1,4279.0,1.81448009]
[1755767702984,17.87338315,4279.1,4278.5,0.001]
[1755767702985,0.66,4278.9,4278.5,0.001]
[1755767703192,3.66,4278.5,4278.4,0.001]
[1755767703354,10.30457268,4278.5,4278.1,0.001]
[1755767703559,11.34783014,4278.2,4278.1,0.001]
[1755767703760,15.69673014,4278.2,4278.1,0.001]
[1755767703982,17.49335315,4278.2,4278.1,0.001]
[1755767704288,17.96485315,4278.2,4278.1,0.001]
[1755767707652,13.92785315,4278.2,4278.1,0.001]
[1755767707852,17.96385315,4278.2,4278.1,0.001]
[1755767710763,17.96385315,4278.2,4277.8,0.021]
[1755767710764,3.66,4278.1,4277.8,0.021]
[1755767710962,11.65973014,4277.9,4277.8,0.021]
[1755767711168,11.83924509,4277.9,4277.8,0.021]
[1755767711487,12.31304509,4277.9,4277.8,0.021]
[1755767712259,3.66,4277.7,4276.5,0.001]
[1755767712629,11.66143014,4277.4,4276.5,0.001]
[1755767712829,15.69543014,4277.4,4276.5,0.001]
[1755767713032,16.16923014,4277.4,4276.5,0.001]
[1755767713909,11.34783014,4277.0,4276.5,0.001]
[1755767714211,15.69543014,4277.0,4276.5,0.001]
[1755767714403,17.31235315,4277.0,4276.5,0.001]
[1755767714596,17.78615315,4277.0,4276.5,0.001]
[1755767715494,13.75215315,4277.0,4276.5,0.001]
[1755767715693,17.78615315,4277.0,4276.5,0.001]
[1755767715928,5.75072301,4277.0,4276.5,0.001]
[1755767716133,15.38183014,4277.0,4276.5,0.001]
[1755767716294,15.38183014,4277.0,4276.8,0.021]
[1755767716624,16.16923014,4277.0,4276.8,0.021]
[1755767717489,16.16843014,4277.0,4276.8,0.021]
[1755767720736,35.99815129,4276.9,4275.8,0.0187]
[1755767720904,8.66143014,4276.1,4275.8,0.0187]
[1755767721104,16.56057315,4276.1,4275.8,0.0187]
[1755767721348,17.03437315,4276.1,4275.8,0.0187]
[1755767721534,33.66,4276.0,4272.9,7.68783014]
[1755767721714,8.66143014,4275.6,4273.2,7.68783014]
[1755767722035,23.36496977,4275.6,4273.8,7.70783014]
[1755767722350,24.15236977,4275.6,4273.8,0.02]
[1755767722549,23.36496977,4275.6,4273.8,7.70783014]
[1755767722716,9.283,4275.6,4274.4,7.68783014]
[1755767722910,13.315,4275.6,4274.4,7.68783014]
[1755767723744,13.315,4275.6,4273.8,0.02]
[1755767723745,21.00283014,4275.6,4273.8,7.70783014]
[1755767723909,9.655,4275.6,4273.8,0.02]
[1755767724102,5.623,4275.6,4274.2,7.68783014]
[1755767724459,14.82598301,4275.6,4273.8,0.02]
[1755767724608,15.61338301,4275.6,4273.8,0.02]
[1755767724947,14.82598301,4275.6,4273.9,17.51723003]
[1755767725105,12.655,4275.6,4273.9,17.51723003]
[1755767725305,8.623,4275.6,4273.9,17.51723003]
[1755767725536,12.655,4275.6,4273.8,17.53723003]
[1755767726039,9.655,4275.6,4274.2,17.51723003]
[1755767727033,9.654,4275.6,4274.2,17.51723003]
[1755767727235,9.654,4275.6,4273.8,0.02]
[1755767727406,9.654,4275.6,4274.0,3.0]
[1755767728210,9.654,4275.6,4274.3,17.51723003]
[1755767728512,5.623,4275.6,4274.3,17.51723003]
[1755767728711,9.654,4275.6,4274.3,17.51723003]
[1755767728912,9.654,4275.6,4273.9,17.51723003]
[1755767729154,9.654,4275.6,4273.8,0.02]
[1755767729452,9.654,4275.6,4273.8,3.02]
[1755767729453,12.01613963,4275.6,4273.8,3.02]
[1755767729814,12.01613963,4275.6,4274.2,3.0]
[1755767729815,9.654,4275.6,4274.2,3.0]
[1755767730008,9.654,4275.6,4273.8,0.02]
[1755767730009,13.6276,4275.6,4273.8,0.02]
[1755767730224,14.1014,4275.6,4273.8,0.02]
[1755767732153,14.1014,4275.6,4274.6,0.001]
[1755767732579,3.66,4275.5,4274.6,0.001]
[1755767732713,10.86053384,4275.4,4274.6,0.001]
[1755767733065,11.33433384,4275.4,4274.6,0.001]
[1755767734954,13.67329627,4275.4,4275.0,0.001]
[1755767735164,11.33433384,4275.4,4275.0,0.001]
[1755767739044,6.88593384,4275.4,4275.0,0.001]
[1755767739354,9.88593384,4275.4,4275.0,0.001]
[1755767739554,9.88593384,4275.4,4274.6,0.001]
[1755767739555,3.0,4275.3,4274.6,0.001]
[1755767739875,21.17723003,4274.9,4274.6,0.001]
[1755767740025,27.50002424,4274.9,4274.6,0.001]
[1755767740228,28.28742424,4274.9,4274.6,0.001]